fUSD/lending_fUSD_20260127
["ID","MTS","AMOUNT","RATE_DAILY","PERIOD"]
[403754273,1769522420313,-500.0,0.00043378,120]
[403754274,1769522420396,-500.0,0.00043378,120]
[403754275,1769522420481,-500.0,0.00043378,120]
[403754276,1769522420565,-500.0,0.00043378,120]
[403754277,1769522420645,-500.0,0.00043378,120]
[403754278,1769522420725,-497.38794089,0.00043378,120]
[403754279,1769522420807,-500.0,0.00043378,120]
[403754280,1769522420886,-500.0,0.00043378,120]
[403754281,1769522420965,-455.89210082,0.00043378,120]
[403754282,1769522421047,-500.0,0.00043378,120]
[403754283,1769522421131,-500.0,0.00043378,120]
[403754284,1769522421212,-500.0,0.00043378,120]
[403754285,1769522421293,-262.0,0.00043378,120]
[403754286,1769522421372,-500.0,0.00043378,120]
[403754287,1769522421456,-500.0,0.00043378,120]
[403754288,1769522421538,-283.82,0.00043378,120]
[403754289,1769522421618,-500.0,0.00043378,120]
[403754290,1769522421696,-500.0,0.00043378,120]
[403754291,1769522421772,-507.38177673,0.00043378,120]
[403754292,1769522421852,-500.0,0.00043378,120]
[403754293,1769522421935,-500.0,0.00043378,120]
[403754294,1769522422020,-500.0,0.00043378,120]
[403754295,1769522422103,-500.0,0.00043378,120]
[403754296,1769522422188,-513.56,0.00043378,120]
[403754297,1769522422272,-500.0,0.00043378,120]
[403754298,1769522422357,-500.0,0.00043378,120]
[403754299,1769522422447,-500.0,0.00043378,120]
[403754300,1769522422528,-500.0,0.00043378,120]
[403754301,1769522422608,-155.0,0.00043378,120]
[403754302,1769522422689,-500.0,0.00043378,120]
[403754303,1769522422769,-500.0,0.00043378,120]
[403754304,1769522422849,-500.0,0.00043378,120]
[403754305,1769522422931,-510.62760068,0.00043378,120]
[403754306,1769522423013,-500.0,0.00043378,120]
[403754307,1769522423096,-502.01829277,0.00043378,120]
[403754308,1769522423180,-500.0,0.00043378,120]
[403754309,1769522423262,-500.0,0.00043378,120]
[403754310,1769522423344,-500.0,0.00043378,120]
[403754311,1769522423427,-500.0,0.00043378,120]
[403754312,1769522423506,-500.0,0.00043378,120]
[403754313,1769522423588,-553.8498831,0.00043378,120]
[403754314,1769522423676,-492.02892963,0.00043378,120]
[403754315,1769522423758,-500.0,0.00043378,120]
[403754316,1769522423842,-327.17351434,0.00043378,120]
[403754317,1769522423926,-500.0,0.00043378,120]
[403754318,1769522424010,-500.0,0.00043378,120]
[403754319,1769522424096,-500.0,0.00043378,120]
[403754320,1769522424180,-505.02663029,0.00043378,120]
[403754321,1769522424263,-500.0,0.00043378,120]
[403754322,1769522424346,-500.0,0.00043378,120]
[403754323,1769522424427,-500.0,0.00043378,120]
[403754324,1769522424510,-500.0,0.00043378,120]
[403754325,1769522424592,-500.0,0.00043378,120]
[403754326,1769522424672,-500.0,0.00043378,120]
[403754327,1769522424757,-500.0,0.00043378,120]
[403754328,1769522424847,-500.0,0.00043378,120]
[403754329,1769522424934,-500.0,0.00043378,120]
[403754330,1769522425024,-500.0,0.00043378,120]
[403754331,1769522425526,-500.0,0.00043378,120]
[403754332,1769522425609,-500.0,0.00043378,120]
[403754333,1769522425692,-500.0,0.00043378,120]
[403754334,1769522425775,-500.0,0.00043378,120]
[403754335,1769522425860,-224.56,0.00043378,120]
[403754336,1769522425951,-500.0,0.00043378,120]
[403754337,1769522426041,-500.0,0.00043378,120]
[403754338,1769522426125,-500.0,0.00043378,120]
[403754339,1769522426210,-500.0,0.00043378,120]
[403754340,1769522426294,-500.0,0.00043378,120]
[403754341,1769522426376,-250.5,0.00043378,120]
[403754342,1769522426456,-500.0,0.00043378,120]
[403754343,1769522426537,-500.0,0.00043378,120]
[403754344,1769522426622,-500.0,0.00043378,120]
[403754345,1769522426705,-500.0,0.00043378,120]
[403754346,1769522426787,-500.0,0.00043378,120]
[403754347,1769522426869,-500.0,0.00043378,120]
[403754348,1769522426958,-500.0,0.00043378,120]
[403754349,1769522427040,-505.22225667,0.00043378,120]
[403754350,1769522427124,-500.0,0.00043378,120]
[403754351,1769522427206,-500.0,0.00043378,120]
[403754352,1769522427291,-500.0,0.00043378,120]
[403754353,1769522427388,-500.0,0.00043378,120]
[403754354,1769522427476,-496.49635528,0.00043378,120]
[403754355,1769522427558,-500.0,0.00043378,120]
[403754356,1769522427640,-500.0,0.00043378,120]
[403754357,1769522427721,-600.0,0.00043378,120]
[403754358,1769522427809,-500.0,0.00043378,120]
[403754359,1769522427896,-500.0,0.00043378,120]
[403754360,1769522427985,-500.0,0.00043378,120]
[403754361,1769522428073,-500.0,0.00043378,120]
[403754362,1769522428161,-500.0,0.00043378,120]
[403754363,1769522428249,-500.0,0.00043378,120]
[403754364,1769522428334,-429.62,0.00043378,120]
[403754365,1769522428415,-500.0,0.00043378,120]
[403754366,1769522428497,-318.24001882,0.00043378,120]
[403754367,1769522428585,-523.41,0.00043378,120]
[403754368,1769522428666,-500.0,0.00043378,120]
[403754369,1769522428750,-500.0,0.00043378,120]
[403754370,1769522428834,-500.0,0.00043378,120]
[403754371,1769522428917,-500.0,0.00043378,120]
[403754372,1769522429001,-152.01,0.00043378,120]
[403754373,1769522429087,-500.0,0.00043378,120]
[403754374,1769522429170,-500.0,0.00043378,120]
[403754375,1769522429255,-500.0,0.00043378,120]
[403754376,1769522429339,-500.0,0.00043378,120]
[403754377,1769522429425,-245.10700821,0.00043378,120]
[403754378,1769522429507,-500.0,0.00043378,120]
[403754379,1769522429587,-500.0,0.00043378,120]
[403754380,1769522429662,-369.36,0.00043378,120]
[403754381,1769522429740,-500.0,0.00043378,120]
[403754382,1769522429820,-500.0,0.00043378,120]
[403754383,1769522429900,-500.0,0.00043378,120]
[403754384,1769522429983,-450.87,0.00043378,120]
[403754385,1769522430065,-503.69399475,0.00043378,120]
[403754386,1769522430150,-500.0,0.00043378,120]
[403754387,1769522430232,-500.0,0.00043378,120]
[403754388,1769522430316,-500.0,0.00043378,120]
[403754389,1769522430410,-500.0,0.00043378,120]
[403754390,1769522430496,-500.0,0.00043378,120]
[403754391,1769522430580,-500.0,0.00043378,120]
[403754392,1769522430660,-197.98,0.00043378,120]
[403754393,1769522430739,-500.0,0.00043378,120]
[403754394,1769522430818,-500.0,0.00043378,120]
[403754395,1769522430898,-500.0,0.00043378,120]
[403754396,1769522430987,-500.0,0.00043378,120]
[403754397,1769522431070,-500.0,0.00043378,120]
[403754398,1769522431155,-500.0,0.00043378,120]
[403754399,1769522431237,-500.0,0.00043378,120]
[403754400,1769522431320,-500.0,0.00043378,120]
[403754401,1769522431402,-547.56,0.00043378,120]
[403754402,1769522431486,-500.0,0.00043378,120]
[403754403,1769522431567,-500.0,0.00043378,120]
[403754404,1769522431647,-500.0,0.00043378,120]
[403754405,1769522431729,-164.50428599,0.00043378,120]
[403754406,1769522431812,-500.0,0.00043378,120]
[403754407,1769522431899,-500.0,0.00043378,120]
[403754408,1769522431981,-500.0,0.00043378,120]
[403754409,1769522432063,-500.0,0.00043378,120]
[403754410,1769522432150,-500.0,0.00043378,120]
[403754411,1769522432234,-500.0,0.00043378,120]
[403754412,1769522432313,-500.0,0.00043378,120]
[403754413,1769522432390,-500.0,0.00043378,120]
[403754414,1769522432469,-500.0,0.00043378,120]
[403754415,1769522432550,-500.0,0.00043378,120]
[403754416,1769522432628,-500.0,0.00043378,120]
[403754417,1769522432704,-500.0,0.00043378,120]
[403754418,1769522432784,-500.0,0.00043378,120]
[403754419,1769522432866,-500.0,0.00043378,120]
[403754420,1769522432953,-511.62124435,0.00043378,120]
[403754421,1769522433039,-500.0,0.00043378,120]
[403754422,1769522433124,-500.0,0.00043378,120]
[403754423,1769522433214,-500.0,0.00043378,120]
[403754424,1769522433303,-443.26,0.00043378,120]
[403754425,1769522433387,-500.0,0.00043378,120]
[403754426,1769522433852,-500.0,0.00043378,120]
[403754427,1769522433938,-500.0,0.00043378,120]
[403754428,1769522434026,-500.0,0.00043378,120]
[403754429,1769522434111,-500.0,0.00043378,120]
[403754430,1769522434195,-500.0,0.00043378,120]
[403754431,1769522434280,-500.0,0.00043378,120]
[403754432,1769522434364,-500.0,0.00043378,120]
[403754433,1769522434443,-500.0,0.00043378,120]
[403754434,1769522434522,-363.66,0.00043378,120]
[403754435,1769522434598,-500.0,0.00043378,120]
[403754436,1769522434676,-500.0,0.00043378,120]
[403754437,1769522434753,-500.0,0.00043378,120]
[403754438,1769522434831,-500.0,0.00043378,120]
[403754439,1769522434912,-508.68760994,0.00043378,120]
[403754440,1769522434990,-378.7,0.00043378,120]
[403754441,1769522435070,-500.0,0.00043378,120]
[403754442,1769522435148,-500.0,0.00043378,120]
[403754443,1769522435231,-500.0,0.00043378,120]
[403754444,1769522435311,-500.0,0.00043378,120]
[403754445,1769522435392,-500.0,0.00043378,120]
[403754446,1769522435469,-500.0,0.00043378,120]
[403754447,1769522435546,-259.62,0.00043378,120]
[403754448,1769522435623,-500.0,0.00043378,120]
[403754449,1769522435699,-500.0,0.00043378,120]
[403754450,1769522435776,-500.0,0.00043378,120]
[403754451,1769522435852,-500.0,0.00043378,120]
[403754452,1769522435930,-500.0,0.00043378,120]
[403754453,1769522436010,-500.0,0.00043378,120]
[403754454,1769522436089,-252.6,0.00043378,120]
[403754455,1769522436172,-500.0,0.00043378,120]
[403754456,1769522436252,-500.0,0.00043378,120]
[403754457,1769522436331,-500.0,0.00043378,120]
[403754459,1769522436404,-500.0,0.00043378,120]
[403754460,1769522436484,-337.78803365,0.00043378,120]
[403754461,1769522436559,-500.0,0.00043378,120]
[403754462,1769522436635,-500.0,0.00043378,120]
[403754463,1769522436711,-500.0,0.00043378,120]
[403754466,1769522436791,-500.0,0.00043378,120]
[403754468,1769522436873,-254.72,0.00043378,120]
[403754469,1769522436954,-500.0,0.00043378,120]
[403754470,1769522437034,-500.0,0.00043378,120]
[403754471,1769522437115,-500.0,0.00043378,120]
[403754472,1769522437192,-500.0,0.00043378,120]
[403754473,1769522437268,-561.1,0.00043378,120]
[403754474,1769522437344,-500.0,0.00043378,120]
[403754475,1769522437420,-415.7729214,0.00043378,120]
[403754476,1769522437493,-500.0,0.00043378,120]
[403754477,1769522437566,-509.87028827,0.00043378,120]
[403754478,1769522437640,-500.0,0.00043378,120]
[403754479,1769522437716,-500.0,0.00043378,120]
[403754480,1769522437792,-500.0,0.00043378,120]
[403754481,1769522437874,-500.0,0.00043378,120]
[403754482,1769522437954,-500.0,0.00043378,45]
[403754483,1769522438034,-500.0,0.00043378,120]
[403754484,1769522438115,-563.04,0.00043378,45]
[403754485,1769522438196,-500.0,0.00043378,120]
[403754486,1769522438276,-500.0,0.00043378,120]
[403754487,1769522438355,-505.76202844,0.00043378,120]
[403754488,1769522438432,-223.7,0.00043378,120]
[403754489,1769522438508,-500.0,0.00043378,120]
[403754490,1769522438584,-500.0,0.00043378,120]
[403754491,1769522438660,-500.0,0.00043378,120]
[403754492,1769522438736,-500.0,0.00043378,120]
[403754493,1769522438813,-500.0,0.00043378,120]
[403754494,1769522438891,-500.0,0.00043378,120]
[403754495,1769522438972,-546.14900088,0.00043378,120]
[403754496,1769522439053,-500.0,0.00043378,120]
[403754497,1769522439135,-500.0,0.00043378,120]
[403754498,1769522439223,-592.58,0.00043378,120]
[403754499,1769522439305,-500.0,0.00043378,120]
[403754500,1769522439384,-500.0,0.00043378,120]
[403754501,1769522439462,-503.81797268,0.00043378,120]
[403754502,1769522439535,-500.0,0.00043378,120]
[403754503,1769522439608,-500.0,0.00043378,120]
[403754504,1769522439680,-500.0,0.00043378,120]
[403754505,1769522439754,-300.26,0.00043378,120]
[403754506,1769522439826,-500.0,0.00043378,120]
[403754507,1769522439901,-500.0,0.00043378,120]
[403754508,1769522439981,-500.0,0.00043378,120]
[403754509,1769522440059,-509.93212203,0.00043378,120]
[403754510,1769522440136,-500.0,0.00043378,120]
[403754511,1769522440215,-546.48,0.00043378,120]
[403754512,1769522440298,-500.0,0.00043378,120]
[403754513,1769522440385,-500.0,0.00043378,120]
[403754514,1769522440468,-500.0,0.00043378,120]
[403754515,1769522440549,-500.0,0.00043378,120]
[403754516,1769522440626,-189.78,0.00043378,120]
[403754517,1769522440703,-500.0,0.00043378,120]
[403754518,1769522440784,-617.78,0.00043378,120]
[403754519,1769522440863,-500.0,0.00043378,120]
[403754520,1769522440948,-500.0,0.00043378,120]
[403754521,1769522441026,-500.0,0.00043378,120]
[403754522,1769522441107,-500.0,0.00043378,120]
[403754523,1769522441188,-500.0,0.00043378,120]
[403754524,1769522441266,-500.0,0.00043378,120]
[403754525,1769522441662,-500.0,0.00043378,120]
[403754526,1769522441748,-500.0,0.00043378,120]
[403754527,1769522441827,-500.0,0.00043378,120]
[403754528,1769522441906,-500.0,0.00043378,120]
[403754529,1769522441990,-165.06,0.00043378,120]
[403754530,1769522442069,-500.0,0.00043378,120]
[403754531,1769522442147,-426.12,0.00043378,120]
[403754532,1769522442223,-500.0,0.00043378,120]
[403754533,1769522442298,-500.0,0.00043378,120]
[403754534,1769522442372,-524.60729639,0.00043378,120]
[403754535,1769522442445,-500.0,0.00043378,120]
[403754536,1769522442517,-626.04,0.00043378,120]
[403754537,1769522442591,-500.0,0.00043378,120]
[403754538,1769522442679,-500.0,0.00043378,120]
[403754539,1769522442760,-500.0,0.00043378,120]
[403754540,1769522442842,-504.79041762,0.00043378,120]
[403754541,1769522442924,-500.0,0.00043378,120]
[403754542,1769522443009,-500.0,0.00043378,120]
[403754543,1769522443090,-500.0,0.00043378,120]
[403754544,1769522443171,-500.0,0.00043378,120]
[403754545,1769522443251,-500.0,0.00043378,120]
[403754546,1769522443330,-228.3,0.00043378,120]
[403754547,1769522443409,-500.0,0.00043378,120]
[403754548,1769522443488,-500.0,0.00043378,120]
[403754549,1769522443567,-500.0,0.00043378,120]
[403754550,1769522443645,-500.0,0.00043378,120]
[403754551,1769522443724,-500.0,0.00043378,120]
[403754552,1769522443813,-500.0,0.00043378,120]
[403754553,1769522443893,-632.28,0.00043378,120]
[403754554,1769522443977,-500.0,0.00043378,120]
[403754555,1769522444057,-500.0,0.00043378,120]
[403754556,1769522444141,-500.0,0.00043378,120]
[403754557,1769522444222,-500.0,0.00043378,120]
[403754558,1769522444299,-567.9,0.00043378,120]
[403754559,1769522444377,-500.0,0.00043378,120]
[403754560,1769522444454,-500.0,0.00043378,120]
[403754561,1769522444537,-500.0,0.00043378,120]
[403754562,1769522444618,-500.0,0.00043378,120]
[403754563,1769522444697,-500.0,0.00043378,120]
[403754564,1769522444778,-500.0,0.00043378,120]
[403754565,1769522444858,-500.0,0.00043378,120]
[403754566,1769522444943,-508.02802971,0.00043378,120]
[403754567,1769522445025,-500.0,0.00043378,120]
[403754568,1769522445109,-500.0,0.00043378,120]
[403754569,1769522445191,-500.0,0.00043378,120]
[403754570,1769522445274,-500.0,0.00043378,120]
[403754571,1769522445356,-202.5,0.00043378,120]
[403754572,1769522445437,-500.0,0.00043378,120]
[403754573,1769522445518,-500.0,0.00043378,120]
[403754574,1769522445599,-500.0,0.00043378,120]
[403754575,1769522445681,-500.0,0.00043378,120]
[403754576,1769522445763,-359.93,0.00043378,120]
[403754577,1769522445843,-500.0,0.00043378,120]
[403754578,1769522445926,-500.0,0.00043378,120]
[403754579,1769522446009,-562.92,0.00043378,120]
[403754580,1769522446092,-500.0,0.00043378,120]
[403754581,1769522446173,-500.0,0.00043378,120]
[403754582,1769522446253,-500.0,0.00043378,120]
[403754583,1769522446333,-451.7,0.00043378,120]
[403754584,1769522446411,-500.0,0.00043378,120]
[403754585,1769522446490,-500.0,0.00043378,120]
[403754586,1769522446568,-500.0,0.00043378,120]
[403754587,1769522446645,-500.0,0.00043378,120]
[403754588,1769522446725,-500.0,0.00043378,120]
[403754589,1769522446805,-500.0,0.00043378,120]
[403754590,1769522446886,-508.09925075,0.00043378,120]
[403754591,1769522446971,-500.0,0.00043378,120]
[403754592,1769522447053,-500.0,0.00043378,120]
[403754593,1769522447136,-503.92474347,0.00043378,120]
[403754594,1769522447219,-500.0,0.00043378,120]
[403754595,1769522447301,-500.0,0.00043378,120]
[403754596,1769522447385,-500.0,0.00043378,120]
[403754597,1769522447469,-500.0,0.00043378,120]
[403754598,1769522447548,-500.0,0.00043378,120]
[403754599,1769522447626,-500.0,0.00043378,120]
[403754600,1769522447703,-500.0,0.00043378,120]
[403754601,1769522447778,-500.0,0.00043378,120]
[403754602,1769522447858,-500.0,0.00043378,120]
[403754603,1769522447943,-500.0,0.00043378,120]
[403754604,1769522448024,-500.0,0.00043378,120]
[403754605,1769522448104,-500.0,0.00043378,120]
[403754606,1769522448187,-506.53347788,0.00043378,120]
[403754607,1769522448271,-50000.0,0.00043378,30]
[403754608,1769522448353,-250.0,0.00043378,120]
[403754609,1769522448437,-250.0,0.00043378,120]
[403754610,1769522448518,-208.37,0.00043378,120]
[403754611,1769522448602,-537.0,0.00043378,30]
[403754612,1769522448682,-1000.0,0.00043378,30]
[403754613,1769522448761,-500.0,0.00043378,120]
[403754614,1769522448842,-491.4848129,0.00043378,120]
[403754615,1769522448925,-2529.24676633,0.00043378,120]
[403754616,1769522449016,-10000.0,0.00043378,38]
[403754617,1769522449102,-500.0,0.00043378,120]
[403754618,1769522449184,-1000.0,0.00043378,120]
[403754619,1769522449267,-1000.0,0.00043378,120]
[403754620,1769522449728,-1000.0,0.00043378,120]
[403754621,1769522449853,-1076.0,0.00043378,120]
[403754622,1769522449937,-248889.89942743,0.00043378,30]
[403754623,1769522450019,-653.0,0.00043378,60]
[403754624,1769522450099,-171.46637596,0.00043378,120]
[403754625,1769522450181,-226.0,0.00043378,30]
[403754626,1769522450262,-326.72288006,0.00043378,120]
[403754627,1769522450343,-401.68339422,0.00043378,120]
[403754628,1769522450436,-240.01280934,0.00043378,120]
[403754629,1769522450522,-229.1394594,0.00043378,120]
[403754630,1769522450604,-203.95738933,0.00043378,120]
[403754631,1769522450682,-153.95116681,0.00043378,30]
[403754632,1769522450763,-356.41979743,0.00043378,120]
[403754633,1769522450844,-295.10694113,0.00043378,120]
[403754634,1769522450925,-286.02888692,0.00043378,120]
[403754635,1769522451006,-209.10465811,0.00043378,120]
[403754636,1769522451090,-500.0,0.00043378,120]
[403754637,1769522451174,-231.8892,0.00043378,120]
[403754638,1769522451257,-228.26980844,0.00043378,120]
[403754639,1769522451338,-186.8854104,0.00043378,120]
[403754640,1769522451423,-500.0,0.00043378,120]
[403754641,1769522451508,-500.0,0.00043378,120]
[403754642,1769522451593,-583.21368687,0.00043378,120]
[403754643,1769522451677,-280.20472572,0.00043378,120]
[403754644,1769522451757,-292.41873913,0.00043378,120]
[403754645,1769522451839,-444.04173914,0.00043378,120]
[403754646,1769522451924,-187.76100915,0.00043378,120]
[403754647,1769522452003,-198.62407667,0.00043378,120]
[403754648,1769522452084,-347.89056052,0.00043378,120]
[403754649,1769522452168,-204.89566871,0.00043378,120]
[403754650,1769522452249,-214.24315838,0.00043378,120]
[403754651,1769522452329,-239.69311989,0.00043378,120]
[403754652,1769522452406,-593.52234197,0.00043378,120]
[403754653,1769522452487,-296.22866814,0.00043378,120]
[403754654,1769522452567,-241.03383296,0.00043378,120]
[403754655,1769522452647,-237.77210977,0.00043378,120]
[403754656,1769522452732,-246.63571744,0.00043378,120]
[403754657,1769522452818,-171.10151708,0.00043378,120]
[403754658,1769522452901,-314.09753854,0.00043378,120]
[403754659,1769522452984,-318.40032874,0.00043378,120]
[403754660,1769522453066,-382.40514299,0.00043378,120]
[403754661,1769522453148,-166.38149376,0.00043378,120]
[403754662,1769522453230,-416.1017313,0.00043378,120]
[403754663,1769522453316,-357.68657063,0.00043378,120]
[403754664,1769522453401,-184.22505752,0.00043378,120]
[403754665,1769522453482,-195.21031802,0.00043378,120]
[403754666,1769522453563,-471.00625918,0.00043378,120]
[403754667,1769522453642,-203.51354617,0.00043378,120]
[403754668,1769522453721,-327.65575171,0.00043378,120]
[403754669,1769522453806,-500.0,0.00043378,120]
[403754670,1769522453891,-542.72895295,0.00043378,120]
[403754671,1769522453975,-366.55089578,0.00043378,120]
[403754672,1769522454060,-429.05379643,0.00043378,120]
[403754673,1769522454145,-615.57561351,0.00043378,120]
[403754674,1769522454227,-1516.619999,0.00043378,120]
[403754675,1769522454308,-153.06630915,0.00043378,120]
[403754676,1769522454389,-245.01764983,0.00043378,120]
[403754677,1769522454472,-500.0,0.00043378,120]
[403754678,1769522454553,-430.91884943,0.00043378,120]
[403754679,1769522454633,-160.66294715,0.00043378,120]
[403754680,1769522454712,-222.58116365,0.00043378,120]
[403754681,1769522454790,-190.51942098,0.00043378,120]
[403754682,1769522454871,-155.09178595,0.00043378,120]
[403754683,1769522454957,-238.75236803,0.00043378,120]
[403754684,1769522455042,-1144.2083704,0.00043378,120]
[403754685,1769522455128,-281.54599429,0.00043378,120]
[403754686,1769522455209,-500.0,0.00043378,120]
[403754687,1769522455289,-291.80447122,0.00043378,120]
[403754688,1769522455370,-539.8187873,0.00043378,120]
[403754689,1769522455451,-171.18500836,0.00043378,120]
[403754690,1769522455533,-245.25447221,0.00043378,120]
[403754691,1769522455612,-214.91657264,0.00043378,120]
[403754692,1769522455694,-166.84014672,0.00043378,120]
[403754693,1769522455776,-261.98693063,0.00043378,120]
[403754694,1769522455857,-158.28962925,0.00043378,120]
[403754695,1769522455944,-160.71460658,0.00043378,120]
[403754696,1769522456025,-206.99352285,0.00043378,120]
[403754697,1769522456108,-500.0,0.00043378,120]
[403754698,1769522456189,-240.35229253,0.00043378,120]
[403754699,1769522456273,-343.57567435,0.00043378,120]
[403754700,1769522456354,-191.76272657,0.00043378,120]
[403754701,1769522456438,-202.46112501,0.00043378,120]
[403754702,1769522456518,-242.91170011,0.00043378,120]
[403754703,1769522456598,-619.50511211,0.00043378,120]
[403754704,1769522456676,-265.76020613,0.00043378,60]
[403754705,1769522456754,-672.0,0.00043378,120]
[403754706,1769522456834,-939.53384071,0.00043378,120]
[403754707,1769522456916,-155.54687034,0.00043378,120]
[403754708,1769522456997,-192.48272783,0.00043378,120]
[403754709,1769522457078,-179.59349262,0.00043378,120]
[403754710,1769522457157,-2482.7444748,0.00043378,120]
[403754711,1769522457237,-58000.0,0.00043378,120]
[403754712,1769522457316,-202.80226508,0.00043378,120]
[403754713,1769522457395,-340.64769261,0.00043378,120]
[403754714,1769522457474,-309.0,0.00043378,30]
[403754715,1769522457866,-500.0,0.00043378,120]
[403754716,1769522457954,-500.0,0.00043378,120]
[403754717,1769522458039,-500.0,0.00043378,120]
[403754718,1769522458119,-500.0,0.00043378,120]
[403754719,1769522458199,-507.20799225,0.00043378,120]
[403754720,1769522458276,-185.39472903,0.00043378,120]
[403754721,1769522458352,-489.24547302,0.00043378,120]
[403754722,1769522458430,-158.28464176,0.00043378,120]
[403754723,1769522458510,-532.43060355,0.00043378,120]
[403754724,1769522458588,-14621.0,0.00043378,30]
[403754725,1769522458664,-182.39495204,0.00043378,120]
[403754726,1769522458742,-312.0490188,0.00043378,120]
[403754727,1769522458825,-151.11985493,0.00043378,30]
[403754728,1769522458905,-156.97721332,0.00043378,30]
[403754729,1769522458987,-910.35189498,0.00043378,60]
[403754730,1769522459071,-40374.12141956,0.00043378,30]
[403754731,1769522459153,-7285.60167681,0.00043378,60]
[403754732,1769522459236,-892.35477092,0.00043378,90]
[403754733,1769522459320,-153.86525764,0.00043378,120]
[403754734,1769522459403,-171.55165871,0.00043378,120]
[403754735,1769522459486,-509.10519774,0.00043378,90]
[403754736,1769522459567,-500.0,0.00043378,120]
[403754737,1769522459648,-500.0,0.00043378,120]
[403754738,1769522459730,-500.0,0.00043378,120]
[403754739,1769522459814,-500.0,0.00043378,120]
[403754740,1769522459897,-500.0,0.00043378,120]
[403754741,1769522459980,-500.0,0.00043378,120]
[403754742,1769522460064,-202.45842153,0.00043378,120]
[403754743,1769522460149,-502.31939346,0.00043378,120]
[403754744,1769522460233,-2812.59162058,0.00043378,30]
[403754745,1769522460315,-932.18777607,0.00043378,30]
[403754746,1769522460400,-400.0,0.00043378,30]
[403754747,1769522460487,-400.0,0.00043378,30]
[403754748,1769522460573,-400.0,0.00043378,30]
[403754749,1769522460659,-400.0,0.00043378,30]
[403754750,1769522460741,-400.0,0.00043378,30]
[403754751,1769522460823,-400.0,0.00043378,30]
[403754752,1769522460903,-400.0,0.00043378,30]
[403754753,1769522460984,-400.0,0.00043378,30]
[403754754,1769522461069,-400.0,0.00043378,30]
[403754755,1769522461151,-400.0,0.00043378,30]
[403754756,1769522461229,-400.0,0.00043378,30]
[403754757,1769522461310,-400.0,0.00043378,30]
[403754758,1769522461393,-400.0,0.00043378,30]
[403754759,1769522461478,-400.0,0.00043378,30]
[403754760,1769522461562,-400.0,0.00043378,30]
[403754761,1769522461645,-400.0,0.00043378,30]
[403754762,1769522461730,-424.33563055,0.00043378,30]
[403754763,1769522461812,-500.0,0.00043378,120]
[403754764,1769522461899,-1117.1830168,0.00043378,120]
[403754765,1769522461986,-500.0,0.00043378,120]
[403754766,1769522462070,-500.0,0.00043378,120]
[403754767,1769522462155,-500.0,0.00043378,120]
[403754768,1769522462240,-500.0,0.00043378,120]
[403754769,1769522462327,-500.0,0.00043378,120]
[403754770,1769522462411,-500.0,0.00043378,120]
[403754771,1769522462496,-184.89502007,0.00043378,120]
[403754772,1769522462584,-822.65637991,0.00043378,120]
[403754773,1769522462672,-317.08,0.00043378,120]
[403754774,1769522462760,-500.0,0.00043378,120]
[403754775,1769522462849,-247.02599257,0.00043378,120]
[403754776,1769522462946,-526.01,0.00043378,120]